fUST/lending_fUST_20250310
["ID","MTS","AMOUNT","RATE_DAILY","PERIOD"]
[355801492,1741587038026,-499.06087303,0.00033889,7]
[355801493,1741587038036,-500.0,0.00033889,2]
[355801494,1741587038046,-500.0,0.00033889,2]
[355801495,1741587038056,-500.0,0.00033889,2]
[355801496,1741587038066,-500.0,0.00033889,2]
[355801497,1741587038076,-500.0,0.00033889,2]
[355801498,1741587038085,-500.0,0.00033889,2]
[355801499,1741587038095,-500.0,0.00033889,2]
[355801500,1741587038105,-500.0,0.00033889,2]
[355801501,1741587038114,-500.0,0.00033889,2]
[355801502,1741587038124,-500.0,0.00033889,2]
[355801503,1741587038134,-500.0,0.00033889,2]
[355801504,1741587038145,-500.0,0.00033889,2]
[355801505,1741587038155,-500.0,0.00033889,2]
[355801506,1741587038167,-500.0,0.00033889,2]
[355801507,1741587038177,-500.0,0.00033889,2]
[355801508,1741587038187,-500.0,0.00033889,2]
[355801509,1741587038197,-500.0,0.00033889,2]
[355801510,1741587038207,-500.0,0.00033889,2]
[355801511,1741587038216,-500.0,0.00033889,2]
[355801512,1741587038226,-500.0,0.00033889,2]
[355801513,1741587038235,-500.0,0.00033889,2]
[355801514,1741587038245,-500.0,0.00033889,2]
[355801515,1741587038255,-500.0,0.00033889,2]
[355801516,1741587038265,-500.0,0.00033889,2]
[355801517,1741587038274,-500.0,0.00033889,2]
[355801518,1741587038284,-500.0,0.00033889,2]
[355801519,1741587038293,-500.0,0.00033889,2]
[355801520,1741587038303,-500.0,0.00033889,2]
[355801521,1741587038313,-500.0,0.00033889,2]
[355801522,1741587038322,-500.0,0.00033889,2]
[355801523,1741587038332,-500.0,0.00033889,2]
[355801524,1741587038342,-500.0,0.00033889,2]
[355801525,1741587038352,-343.0,0.00033889,2]
[355801526,1741587038362,-20000.0,0.0003389,2]
[355801527,1741587038371,-503.93416257,0.00033891,7]
[355801528,1741587038381,-500.0,0.000339,5]
[355801529,1741587038391,-1162.09331742,0.000339,6]
[355801530,1741587038400,-500.0,0.000339,5]
[355801531,1741587038411,-500.0,0.000339,5]
[355801532,1741587038421,-500.0,0.000339,5]
[355801533,1741587038431,-6463.5244501,0.00033944,2]
[355801534,1741587038441,-1040.66,0.00033971,2]
[355801535,1741587038450,-1546.59490986,0.00035516,2]
[355801536,1741587038460,-500.0,0.00035616,2]
[355801537,1741587038470,-500.0,0.00035616,2]
[355801538,1741587038609,-500.0,0.00035616,2]
[355801539,1741587038620,-426.60911637,0.00035616,2]
[355801540,1741587038630,-500.0,0.00035616,2]
[355801541,1741587038640,-500.0,0.00035616,2]
[355801542,1741587038650,-322.621193,0.0003589,2]
[355801543,1741587038660,-160.0,0.00038717,2]
[355801544,1741587038669,-521.9818046,0.00039379,5]
[355801545,1741587038678,-1000.0,0.00039379,5]
[355801546,1741587038688,-1000.0,0.00039379,5]
[355801547,1741587038698,-1000.0,0.00039379,5]
[355801548,1741587038707,-322.621193,0.00041211,2]
[355801549,1741587038717,-398.0,0.00045637,2]
[355801550,1741587038727,-322.621193,0.00046532,2]
[355801551,1741587038736,-1012.3916438,0.00047945,10]
[355801552,1741587038746,-398.0,0.00048637,2]
[355801553,1741587038756,-3661.95,0.00048899,120]
[355801554,1741587038766,-153.98,0.000493,45]
[355801555,1741587038775,-153.98,0.000493,45]
[355801556,1741587038786,-153.98,0.000493,45]
[355801557,1741587038796,-153.98,0.000493,45]
[355801558,1741587038805,-1500.0,0.00049398,10]
[355801559,1741587038815,-1500.0,0.00049398,10]
[355801560,1741587038824,-1500.0,0.00049398,10]
[355801561,1741587038834,-2301.6686384,0.00049869,4]
[355801562,1741587038843,-1000.0,0.0005,120]
[355801563,1741587038853,-1000.0,0.0005,30]
[355801564,1741587038862,-1000.0,0.0005,60]
[355801565,1741587038872,-190.0,0.0005,32]
[355801566,1741587038882,-190.0,0.0005,120]
[355801567,1741587038892,-1433.03,0.0005067,10]
[355801568,1741587038902,-1719.64,0.0005068,10]
[355801569,1741587038915,-1004.7556252,0.0005069,4]
[355801570,1741587038925,-2063.56,0.0005069,10]
[355801571,1741587038935,-623.63,0.000507,2]
[355801572,1741587038945,-55555.0,0.000507,120]
[355801573,1741587038955,-500.0,0.000507,30]
[355801574,1741587038965,-1000.0,0.00050746,2]
[355801575,1741587038975,-1004.7556252,0.00050766,4]
[355801576,1741587038985,-4019.0225008,0.00050767,4]
[355801577,1741587038995,-168.92,0.00050767,2]
[355801578,1741587039005,-168.92,0.00050767,2]
[355801579,1741587039014,-168.92,0.00050767,2]
[355801580,1741587039023,-300.0,0.00050769,2]
[355801581,1741587039033,-6502.61983104,0.00050776,2]
[355801582,1741587039042,-222000.0,0.00050777,2]
[355801583,1741587039052,-1004.7556252,0.0005078,4]
[355801584,1741587039061,-13061.8231276,0.0005079,4]
[355801585,1741587039071,-1040092.15089992,0.000508,30]
[355801586,1741587039080,-341.51510537,0.00050873,10]
[355801587,1741587039090,-500.0,0.00050873,10]
[355801588,1741587039099,-513.59064664,0.00050873,10]
[355801589,1741587039109,-500.0,0.00050873,10]
[355801590,1741587039119,-500.0,0.00050873,10]
[355801591,1741587039129,-400.01752639,0.00050873,10]
[355801592,1741587039139,-512.4335755,0.00050873,10]
[355801593,1741587039148,-500.0,0.00050873,10]
[355801594,1741587039159,-500.0,0.00050873,10]
[355801595,1741587039168,-500.0,0.00050873,10]
[355801596,1741587039177,-33175.69981596,0.00050875,71]
[355801597,1741587039187,-4683.8482963,0.00050875,71]
[355801598,1741587039198,-17969.41379641,0.00050876,120]
[355801599,1741587039208,-324.30007276,0.00050876,2]
[355801600,1741587039218,-1199.36223742,0.00050876,2]
[355801601,1741587039228,-289.42990553,0.00050876,2]
[355801602,1741587039238,-18498.76415288,0.00050876,2]
[355801603,1741587039247,-4149.27331098,0.00050876,7]
[355801605,1741587039257,-5861.04693549,0.00050876,2]
[355801607,1741587039266,-300.73533698,0.00050876,2]
[355801608,1741587039276,-1385.49207614,0.00050876,2]
[355801609,1741587039286,-582.04464112,0.00050876,2]
[355801610,1741587039296,-5846.91101883,0.00050876,2]
[355801612,1741587039306,-31558.72798624,0.00050876,2]
[355801613,1741587039315,-2150.0,0.00050876,2]
[355801614,1741587039325,-10000.0,0.00050876,30]
[355801615,1741587039335,-3006.16264774,0.00050876,120]
[355801617,1741587039345,-10000.0,0.00050876,120]
[355801619,1741587039355,-2656.25160476,0.00050876,2]
[355801621,1741587039364,-9980.0,0.00050876,120]
[355801623,1741587039375,-250.0,0.00050876,120]
[355801624,1741587039385,-150.0,0.00050876,120]
[355801625,1741587039394,-150.0,0.00050876,120]
[355801626,1741587039404,-150.0,0.00050876,120]
[355801627,1741587039414,-150.0,0.00050876,120]
[355801628,1741587039424,-150.0,0.00050876,120]
[355801629,1741587039433,-152.45,0.00050876,120]
[355801630,1741587039442,-150.0,0.00050876,120]
[355801631,1741587039451,-150.0,0.00050876,120]
[355801632,1741587039461,-295.974,0.00050876,120]
[355801633,1741587039471,-150.0,0.00050876,120]
[355801635,1741587039481,-150.0,0.00050876,120]
[355801636,1741587039491,-150.0,0.00050876,120]
[355801637,1741587039500,-195.328,0.00050876,120]
[355801638,1741587039510,-150.0,0.00050876,120]
[355801639,1741587039520,-150.0,0.00050876,120]
[355801640,1741587039529,-150.0,0.00050876,120]
[355801641,1741587039539,-150.0,0.00050876,120]
[355801642,1741587039548,-185.5,0.00050876,30]
[355801643,1741587039558,-353874.78104911,0.00050876,120]
[355801644,1741587039568,-9980.0,0.00050876,120]
[355801645,1741587039578,-161.377,0.00050876,120]
[355801646,1741587039588,-150.0,0.00050876,120]
[355801647,1741587039597,-150.0,0.00050876,120]
[355801649,1741587039607,-150.0,0.00050876,120]
[355801651,1741587039616,-150.0,0.00050876,120]
[355801653,1741587039626,-150.0,0.00050876,120]
[355801655,1741587039636,-150.0,0.00050876,120]
[355801657,1741587039646,-150.0,0.00050876,120]
[355801659,1741587039655,-150.0,0.00050876,120]
[355801661,1741587039665,-150.0,0.00050876,120]
[355801663,1741587039675,-150.0,0.00050876,120]
[355801665,1741587039684,-150.0,0.00050876,120]
[355801667,1741587039693,-150.0,0.00050876,120]
[355801669,1741587039703,-150.0,0.00050876,120]
[355801671,1741587039712,-150.0,0.00050876,120]
[355801673,1741587039722,-150.0,0.00050876,120]
[355801675,1741587039732,-150.0,0.00050876,120]
[355801677,1741587039742,-150.0,0.00050876,120]
[355801679,1741587039752,-150.0,0.00050876,120]
[355801681,1741587039762,-555.337,0.00050876,120]
[355801683,1741587039771,-540.0,0.00050876,120]
[355801685,1741587039780,-540.0,0.00050876,120]
[355801687,1741587039790,-540.0,0.00050876,120]
[355801689,1741587039799,-540.0,0.00050876,120]
[355801691,1741587039808,-540.0,0.00050876,120]
[355801693,1741587039818,-540.0,0.00050876,120]
[355801695,1741587039827,-540.0,0.00050876,120]
[355801697,1741587039836,-540.0,0.00050876,120]
[355801699,1741587039847,-540.0,0.00050876,120]
[355801701,1741587039858,-540.0,0.00050876,120]
[355801703,1741587039867,-540.0,0.00050876,120]
[355801704,1741587039877,-1945.0,0.00050876,120]
[355801713,1741587039985,-540.0,0.00050876,120]
[355801715,1741587039996,-1945.0,0.00050876,120]
[355801716,1741587040006,-1945.0,0.00050876,120]
[355801717,1741587040016,-540.0,0.00050876,120]
[355801718,1741587040025,-1945.0,0.00050876,120]
[355801719,1741587040035,-1945.0,0.00050876,120]
[355801720,1741587040045,-540.0,0.00050876,120]
[355801721,1741587040055,-1945.0,0.00050876,120]
[355801722,1741587040065,-540.0,0.00050876,120]
[355801723,1741587040075,-1945.0,0.00050876,120]
[355801724,1741587040084,-540.0,0.00050876,120]
[355801725,1741587040094,-1945.0,0.00050876,120]
[355801726,1741587040104,-1945.0,0.00050876,120]
[355801727,1741587040114,-540.0,0.00050876,120]
[355801728,1741587040124,-1945.0,0.00050876,120]
[355801729,1741587040134,-540.0,0.00050876,120]
[355801730,1741587040144,-1945.0,0.00050876,120]
[355801731,1741587040154,-540.0,0.00050876,120]
[355801732,1741587040164,-1945.0,0.00050876,120]
[355801733,1741587040174,-540.0,0.00050876,120]
[355801736,1741587040183,-1945.0,0.00050876,120]
[355801738,1741587040193,-1945.0,0.00050876,120]
[355801740,1741587040204,-1945.0,0.00050876,120]
[355801742,1741587040214,-1945.0,0.00050876,120]
[355801744,1741587040224,-1945.0,0.00050876,120]
[355801746,1741587040233,-1945.0,0.00050876,120]
[355801748,1741587040243,-1945.0,0.00050876,120]
[355801749,1741587040253,-1945.0,0.00050876,120]
[355801750,1741587040262,-1945.0,0.00050876,120]
[355801751,1741587040273,-552.481,0.00050876,120]
[355801752,1741587040283,-2274.0,0.00050876,120]
[355801753,1741587040292,-2274.0,0.00050876,120]
[355801754,1741587040302,-2274.0,0.00050876,120]
[355801755,1741587040311,-2274.0,0.00050876,120]
[355801756,1741587040321,-2274.0,0.00050876,120]
[355801757,1741587040330,-2274.0,0.00050876,120]
[355801758,1741587040340,-2274.0,0.00050876,120]
[355801759,1741587040349,-2274.0,0.00050876,120]
[355801760,1741587040358,-2274.0,0.00050876,120]
[355801761,1741587040368,-2274.0,0.00050876,120]
[355801762,1741587040378,-2274.0,0.00050876,120]
[355801763,1741587040388,-2274.0,0.00050876,120]
[355801764,1741587040397,-2274.0,0.00050876,120]
[355801765,1741587040407,-2274.0,0.00050876,120]
[355801766,1741587040418,-2274.0,0.00050876,120]
[355801767,1741587040427,-2274.0,0.00050876,120]
[355801768,1741587040436,-2274.0,0.00050876,120]
[355801769,1741587040446,-2274.0,0.00050876,120]
[355801770,1741587040455,-2274.0,0.00050876,120]
[355801771,1741587040465,-2274.0,0.00050876,120]
[355801772,1741587040475,-2274.0,0.00050876,120]
[355801773,1741587040484,-280.622,0.00050876,120]
[355801774,1741587040494,-25000.0,0.00050876,30]
[355801775,1741587040503,-25000.0,0.00050876,35]
[355801776,1741587040513,-25000.0,0.00050876,40]
[355801777,1741587040523,-25000.0,0.00050876,45]
[355801778,1741587040533,-25000.0,0.00050876,50]
[355801779,1741587040543,-17000.0,0.00050876,30]
[355801780,1741587040552,-560.58892049,0.00050876,30]
[355801781,1741587040562,-401.203,0.00050876,120]
[355801782,1741587040572,-398.0,0.00050876,120]
[355801783,1741587040581,-398.0,0.00050876,120]
[355801784,1741587040591,-398.0,0.00050876,120]
[355801785,1741587040601,-398.0,0.00050876,120]
[355801786,1741587040611,-398.0,0.00050876,120]
[355801787,1741587040622,-398.0,0.00050876,120]
[355801788,1741587040631,-398.0,0.00050876,120]
[355801789,1741587040641,-398.0,0.00050876,120]
[355801790,1741587040651,-398.0,0.00050876,120]
[355801791,1741587040661,-398.0,0.00050876,120]
[355801792,1741587040670,-398.0,0.00050876,120]
[355801793,1741587040680,-398.0,0.00050876,120]
[355801794,1741587040689,-398.0,0.00050876,120]
[355801795,1741587040699,-398.0,0.00050876,120]
[355801796,1741587040710,-195.088982,0.00050876,120]
[355801797,1741587040720,-151.650346,0.00050876,120]
[355801798,1741587040731,-151.650346,0.00050876,120]
[355801799,1741587040741,-151.650346,0.00050876,120]
[355801800,1741587040752,-151.0,0.00050876,110]
[355801801,1741587040762,-151.0,0.00050876,110]
[355801802,1741587040772,-213.250904,0.00050876,120]
[355801803,1741587040782,-151.0,0.00050876,110]
[355801804,1741587040792,-151.650346,0.00050876,120]
[355801805,1741587040801,-151.650346,0.00050876,120]
[355801806,1741587040811,-151.650346,0.00050876,120]
[355801807,1741587040821,-151.0,0.00050877,120]
[355801808,1741587040831,-151.0,0.00050877,120]
[355801809,1741587040840,-151.0,0.00050877,120]
[355801810,1741587040850,-151.0,0.00050877,120]
[355801811,1741587040860,-151.0,0.00050877,120]
[355801812,1741587040870,-205.149396,0.00050877,120]
[355801813,1741587040880,-151.0,0.00050877,120]
[355801814,1741587040890,-151.0,0.00050877,120]
[355801815,1741587040901,-271.8,0.00050877,120]
[355801816,1741587040913,-271.8,0.00050877,120]
[355801817,1741587040923,-271.8,0.00050877,120]
[355801818,1741587040932,-271.8,0.00050877,120]
[355801819,1741587040942,-271.8,0.00050877,120]
[355801820,1741587040953,-271.8,0.00050877,120]
[355801821,1741587040963,-667.83592641,0.00050886,120]
[355801822,1741587040972,-168.95428616,0.00050887,2]
[355801823,1741587040985,-47024.23014291,0.00050888,40]
[355801841,1741587043372,-159.50452117,0.000362,98]
[355801842,1741587043382,-1294.736773,0.00050888,40]
[355801843,1741587043446,-2223.01361544,0.00050888,40]
[355801856,1741587045905,-1000.0,0.00050888,40]
[355801897,1741587923136,10000.0,0.00025,10]
[355801899,1741587978413,10000.0,0.00025,10]
[355801900,1741587985215,10000.0,0.00025,10]
[355801901,1741587990925,10000.0,0.00025,10]
[355801902,1741587996001,10000.0,0.00025,10]
[355801903,1741588020014,10000.0,0.00025,10]
[355801904,1741588026534,10000.0,0.00025,10]
[355801907,1741588049632,10000.0,0.00025,10]
[355801908,1741588057475,10000.0,0.00025,10]
[355801909,1741588063106,10000.0,0.00025,10]
[355801911,1741588095920,10000.0,0.00025,10]
[355801912,1741588100917,10000.0,0.00025,10]
[355801913,1741588108116,10000.0,0.00025,10]
[355801914,1741588114647,10000.0,0.00025,10]
[355801915,1741588117266,419.95676798,0.00023,2]
[355801923,1741588130189,10000.0,0.00025,10]
[355801924,1741588141068,10000.0,0.00025,10]
[355801933,1741588163128,-1353.27054611,0.00032382,2]
[355801934,1741588163151,-245.02216365,0.00032477,2]
[355801957,1741588232243,-254.97783635,0.00032477,2]
[355801958,1741588232253,-500.0,0.00032477,2]
[355801959,1741588232263,-500.0,0.00032477,2]
[355801960,1741588232275,-500.0,0.00032477,2]
[355801961,1741588232286,-222.11787478,0.00032477,2]
[355801962,1741588232295,-500.0,0.00032477,2]
[355801963,1741588232304,-500.0,0.00032477,2]
[355801964,1741588232315,-500.0,0.00032477,2]
[355801965,1741588232324,-500.0,0.00032477,2]
[355801966,1741588232333,-500.0,0.00032477,2]
[355801967,1741588232343,-500.0,0.00032477,2]
[355801968,1741588232353,-500.0,0.00032477,2]
[355801969,1741588232363,-500.0,0.00032477,2]
[355801970,1741588232373,-500.0,0.00032477,2]
[355801971,1741588232382,-500.0,0.00032477,2]
[355801972,1741588232391,-500.0,0.00032477,2]
[355801973,1741588232401,-500.0,0.00032477,2]
[355801975,1741588232410,-500.0,0.00032477,2]
[355801977,1741588232419,-500.0,0.00032477,2]
[355801979,1741588232428,-500.0,0.00032477,2]
[355801981,1741588232438,-500.0,0.00032477,2]
[355801982,1741588232449,-500.0,0.00032477,2]
[355801983,1741588232458,-500.0,0.00032477,2]
[355801984,1741588232467,-500.0,0.00032477,2]
[355801985,1741588232476,-500.0,0.00032477,2]
[355801986,1741588232486,-500.0,0.00032477,2]
[355801987,1741588232495,-500.0,0.00032477,2]
[355801988,1741588232504,-203.13134062,0.00032477,2]
[355801989,1741588232513,-500.0,0.00032477,2]
[355801990,1741588232524,-500.0,0.00032477,2]
[355801991,1741588232534,-500.0,0.00032477,2]
[355801992,1741588232543,-500.0,0.00032477,2]
[355801993,1741588232552,-500.0,0.00032477,2]
[355801994,1741588232562,-500.0,0.00032477,2]
[355801995,1741588232571,-500.0,0.00032477,2]
[355801996,1741588232580,-500.0,0.00032477,2]
[355801997,1741588232589,-500.0,0.00032477,2]
[355801998,1741588232598,-500.0,0.00032477,2]
[355801999,1741588232608,-250.0,0.00032477,2]
[355802000,1741588232617,-500.0,0.00032477,2]
[355802001,1741588232626,-500.0,0.00032477,2]
[355802002,1741588232636,-500.0,0.00032477,2]
[355802003,1741588232646,-500.0,0.00032477,2]
[355802004,1741588232655,-500.0,0.00032477,2]
[355802005,1741588232665,-500.0,0.00032477,2]
[355802006,1741588232674,-500.0,0.00032477,2]
[355802007,1741588232683,-500.0,0.00032477,2]
[355802008,1741588232693,-500.0,0.00032477,2]
[355802009,1741588232702,-374.8927915,0.00032477,2]
[355802047,1741588243244,-500.0,0.00032478,2]
[355802049,1741588243254,-1723.01361544,0.00032478,2]
[355802095,1741588265974,992.42,0.00025,10]
[355802100,1741589432551,-378.815,0.0003,2]
[355802101,1741589432561,-263.1135048,0.00031408,2]
[355802102,1741589432571,-192.09812128,0.00031757,2]
[355802103,1741589432581,-500.0,0.00031757,2]
[355802104,1741589432591,-500.0,0.00031757,2]
[355802105,1741589432601,-500.0,0.00031757,2]
[355802106,1741589432610,-996.81337392,0.00031758,2]
[355802176,1741589443607,-0.26349343,0.00031757,2]
[355802177,1741589443619,-499.73650657,0.00031757,2]
[355802178,1741589443631,-500.0,0.00031757,2]
[355802179,1741589443644,-500.0,0.00031757,2]
[355802180,1741589443655,-223.27710887,0.00031757,2]
[355802190,1741589603224,12000.0,0.00029,10]
[355802191,1741589620423,4600.0,0.0002501,2]
[355802194,1741589837133,-200.0,0.00025204,2]
[355802197,1741589936721,10000.0,0.00025,10]
[355802198,1741589956508,10000.0,0.00025,10]
[355802199,1741589974123,10000.0,0.00025,10]
[355802200,1741589992475,10000.0,0.00025,10]
[355802201,1741590138133,504.60860518,0.000294,5]
[355802202,1741590143045,500.0,0.000294,5]
[355802204,1741590304675,500.0,0.000294,5]
[355802205,1741590312516,500.0,0.000294,5]
[355802206,1741590315615,500.0,0.000294,5]
[355802207,1741590365220,500.0,0.000294,5]
[355802208,1741590426472,500.0,0.000294,5]
[355802209,1741590427378,500.0,0.000294,5]
[355802210,1741590432969,500.0,0.000294,5]
[355802211,1741590545072,500.0,0.000294,5]
[355802212,1741590553126,-1157.0,0.00025204,2]
[355802213,1741590553146,-150.0,0.000269,2]
[355802214,1741590553165,-1184.11172782,0.00029235,2]
[355802215,1741590553189,-500.0,0.00029331,2]
[355802216,1741590553212,-500.0,0.00029331,2]
[355802217,1741590553234,-500.0,0.00029331,2]
[355802218,1741590553256,-500.0,0.00029331,2]
[355802219,1741590553278,-500.0,0.00029331,2]
[355802220,1741590553300,-500.0,0.00029331,2]
[355802221,1741590553324,-500.0,0.00029331,2]
[355802222,1741590553346,-500.0,0.00029331,2]
[355802223,1741590553368,-500.0,0.00029331,2]
[355802224,1741590553390,-500.0,0.00029331,2]
[355802225,1741590553412,-500.0,0.00029331,2]
[355802226,1741590553439,-500.0,0.00029331,2]
[355802227,1741590553461,-500.0,0.00029331,2]
[355802228,1741590553484,-500.0,0.00029331,2]
[355802229,1741590553508,-307.90962171,0.00029331,2]
[355802230,1741590553532,-500.0,0.00029331,2]
[355802231,1741590553556,-500.0,0.00029331,2]
[355802232,1741590553580,-500.0,0.00029331,2]
[355802233,1741590553603,-500.0,0.00029331,2]
[355802234,1741590553625,-2484.50918751,0.00029332,2]
[355802264,1741590632607,-17515.49081249,0.00029332,2]
[355802265,1741590632616,-6737.8152958,0.00029334,2]
[355802278,1741590638378,-844.6108845,0.00029334,2]
[355802279,1741590638427,-17317.5738197,0.00029334,2]
[355802280,1741590638437,-500.0,0.000294,2]
[355802281,1741590638447,-1191.75339927,0.000329,6]
[355802282,1741590638457,-944.88463093,0.00034879,5]
[355802283,1741590638467,-1000.0,0.00034879,2]
[355802284,1741590638477,-500.0,0.00035616,2]
[355802285,1741590638487,-529.74580779,0.00035616,2]
[355802286,1741590638497,-500.0,0.00035616,2]
[355802287,1741590638507,-500.0,0.00035616,2]
[355802288,1741590638517,-500.0,0.00035616,2]
[355802289,1741590638527,-500.0,0.00035616,2]
[355802290,1741590638536,-500.0,0.00035616,2]
[355802291,1741590638546,-500.0,0.00035616,2]
[355802292,1741590638556,-500.0,0.00035616,2]
[355802293,1741590638566,-291.633479,0.0003589,2]
[355802294,1741590638576,-291.633479,0.00041211,2]
[355802296,1741590638586,-1141.04542511,0.00043,7]
[355802298,1741590638595,-500.0,0.00043835,120]
[355802300,1741590638605,-504.38384734,0.00043972,120]
[355802301,1741590638614,-1000.0,0.00044898,2]
[355802302,1741590638623,-291.633479,0.00046532,2]
[355802303,1741590638632,-297.73105943,0.00046691,120]
[355802304,1741590638642,-167.7966245,0.00049249,120]
[355802305,1741590638651,-167.7966245,0.00049249,120]
[355802306,1741590638662,-153.99,0.000493,45]
[355802308,1741590638671,-153.99,0.000493,45]
[355802309,1741590638681,-153.99,0.000493,45]
[355802310,1741590638690,-17854.76623473,0.00049305,47]
[355802311,1741590638700,-363.22,0.00049305,30]
[355802312,1741590638709,-2835.7,0.00049305,10]
[355802313,1741590638719,-3509.37,0.00049314,120]
[355802314,1741590638728,-1000.0,0.00049314,2]
[355802315,1741590638737,-1040.66,0.00049314,12]
[355802316,1741590638747,-2341.92414815,0.00049315,47]
[355802317,1741590638757,-31557.88,0.00049315,30]
[355802318,1741590638766,-4273.24992767,0.000495,2]
[355802319,1741590638775,-167.7966245,0.00049578,120]
[355802320,1741590638785,-167.7966245,0.00049578,120]
[355802321,1741590638794,-167.7966245,0.00049578,120]
[355802322,1741590638804,-167.7966245,0.00049578,120]
[355802323,1741590638815,-167.7966245,0.00049578,120]
[355802324,1741590638824,-167.7966245,0.00049578,120]
[355802325,1741590638834,-167.7966245,0.00049578,120]
[355802326,1741590638844,-167.7966245,0.00049578,120]
[355802327,1741590638854,-167.7966245,0.00049578,120]
[355802328,1741590638864,-167.7966245,0.00049578,120]
[355802329,1741590638874,-167.7966245,0.00049578,120]
[355802330,1741590638884,-1913.778907,0.00049869,4]
[355802331,1741590638893,-1000.0,0.0005,120]
[355802332,1741590638903,-1000.0,0.0005,120]
[355802333,1741590638912,-954.0,0.0005,2]
[355802334,1741590638922,-1000.0,0.0005,120]
[355802335,1741590638931,-500.0,0.0005,120]
[355802336,1741590638941,-35310.91,0.0005,90]
[355802337,1741590638951,-5000.0,0.0005,2]
[355802338,1741590638961,-500.0,0.00050075,10]
[355802339,1741590638971,-500.0,0.00050075,10]
[355802340,1741590638980,-500.0,0.00050075,10]
[355802341,1741590638990,-3061.23606094,0.00050189,120]
[355802342,1741590639000,-1000.0,0.00050259,2]
[355802343,1741590639009,-222000.0,0.00050289,2]
[355802344,1741590639019,-55555.0,0.0005048,120]
[355802345,1741590639028,-1000.0,0.000505,120]
[355802347,1741590639040,-155540.33204413,0.0005058,60]
[355802349,1741590639050,-561.27,0.000507,2]
[355802351,1741590639061,-1000.0,0.000508,120]
[355802353,1741590639070,-151.0,0.0005086,120]
[355802354,1741590639080,-205.61,0.0005086,120]
[355802356,1741590639090,-151.0,0.0005086,120]
[355802357,1741590639100,-25000.0,0.00050861,30]
[355802358,1741590639109,-25000.0,0.00050861,35]
[355802359,1741590639120,-25000.0,0.00050861,40]
[355802360,1741590639130,-25000.0,0.00050861,45]
[355802361,1741590639139,-25000.0,0.00050861,50]
[355802362,1741590639149,-17000.0,0.00050861,30]
[355802363,1741590639158,-560.58892049,0.00050861,30]
[355802364,1741590639168,-185.5,0.00050861,30]
[355802365,1741590639177,-164715.90558254,0.00050861,120]
[355802366,1741590639186,-123565.56824813,0.00050861,7]
[355802367,1741590639195,-163.56987105,0.00050861,120]
[355802368,1741590639205,-3060.56045777,0.00050861,2]
[355802369,1741590639214,-90408.44882586,0.00050861,2]
[355802370,1741590639224,-1883.46983028,0.00050861,120]
[355802371,1741590639233,-20000.0,0.00050861,2]
[355802372,1741590639242,-16702.28042314,0.00050861,2]
[355802373,1741590639252,-300.0,0.00050861,2]
[355802374,1741590639261,-802.99888593,0.00050861,2]
[355802375,1741590639271,-40870.94874538,0.00050861,30]
[355802376,1741590639281,-1488.4671155,0.00050861,32]
[355802377,1741590639291,-252.67990472,0.00050861,2]
[355802378,1741590639300,-294.41925536,0.00050861,2]